Cogmind - Beta 10.1 @@@ ROGUE MODE // 2020.10.06 @ 23:46:59 Player: Shrewd Result: Destroyed by Y-45 Defender with Heavy Assault Rifle Performance ------------- Evolutions (0) 0 Regions Visited (2) 400 Robots Destroyed (18) 90 Value Destroyed (154) 154 Prototype IDs (2) 40 Alien Tech Used (0) 0 Bonus (35) 35 TOTAL SCORE: 719 Bonus ------- Follower Combat Kills 35 Cogmind --------- Core Integrity 0/250 Matter 263/300 Energy 140/140 System Corruption 0% Temperature Cool (20) Movement Hovering (76) Location -10/Mines Parts ------- > --- POWER (1) -------- Light Deuterium Engine > --- PROPULSION (2) --- Combat Airjet Combat Airjet > --- UTILITY (2) ------ High-capacity Storage Unit Light Armor Plating > --- WEAPON (2) ------- Particle Gun > --- INVENTORY (12) --- Light Ion Engine Light Treads Light Treads Compact Wheel Compact Wheel Combat Airjet Small Storage Unit Launcher Guidance Computer Light Assault Rifle Grenade Launcher Grenade Launcher Mini Grenade Launcher Peak State ------------ > --- POWER ------------ Light Deuterium Engine > --- PROPULSION ------- Combat Airjet Combat Airjet > --- UTILITY ---------- High-capacity Storage Unit High-capacity Storage Unit > --- WEAPON ----------- Assault Rifle Mini Grenade Launcher > --- INVENTORY -------- Ion Engine Light Ion Engine Light Treads Light Treads Compact Wheel Compact Wheel Combat Airjet Small Storage Unit Launcher Guidance Computer Light Armor Plating Light Assault Rifle Grenade Launcher Grenade Launcher [Rating: 20] Favorites ----------- Power Ion Engine Engine Ion Engine Propulsion Compact Wheel Treads Light Treads Leg Aluminum Leg Wheel Compact Wheel Hover Unit Combat Airjet Utility High-capacity Storage Unit Device Heat Sink Storage High-capacity Storage Unit Processor Armor Integrity Analyzer Protection Light Armor Plating Weapon Assault Rifle Energy Gun Particle Gun Ballistic Gun Assault Rifle Launcher Mini Grenade Launcher Build | -11 -10 -10 ------- Run | Scr Mat Min Slots Evolved . | . . . Power . | . . . Propulsion . | . . . Utility . | . . . Weapon . | . . . Parts Attached 34 | 3 15 16 Power 4 | 1 1 2 Engine 4 | 1 1 2 Core . | . . . Reactor . | . . . Propulsion 13 | 2 6 5 Treads 5 | 2 2 1 Leg . | . . . Wheel 6 | . 4 2 Hover 2 | . . 2 Flight . | . . . Utility 5 | . 3 2 Device 1 | . 1 . Storage 2 | . 1 1 Processor 1 | . 1 . Hackware . | . . . Protection 1 | . . 1 Artifact . | . . . Weapon 12 | . 5 7 Energy Gun 4 | . 2 2 Energy Cannon . | . . . Ballistic Gun 5 | . 3 2 Ballistic Cannon . | . . . Launcher 3 | . . 3 Special Weapon . | . . . Impact Weapon . | . . . Slashing Weapon . | . . . Piercing Weapon . | . . . Special Melee Weapon . | . . . Unidentified Prototypes . | . . . Parts Lost 8 | . . 8 Power 1 | . . 1 Propulsion 2 | . . 2 Utility 1 | . . 1 Weapon 4 | . . 4 Highest Loss Streak 7 | . . 7 Average Slot Usage (%) 96 | . 95 97 Engine 13 | . 14 13 Treads 3 | . 7 . Wheel 20 | . 20 21 Hover 3 | . . 6 Device 4 | . 4 5 Storage 17 | . 14 19 Processor 1 | . 4 . Protection 1 | . . 3 Energy Gun 9 | . 8 10 Ballistic Gun 12 | . 19 8 Launcher 4 | . . 8 Naked Turns . | . . . Heaviest Build 72 | 12 44 72 Greatest Support 44 | 40 40 44 Greatest Overweight (x) 2 | . 1 2 Average Overweight (x) . | . . 1 Largest Inventory Capacity 20 | 6 12 20 Average Capacity 12 | 6 8 15 Most Carried 13 | 6 12 13 Average Carried 10 | 6 7 12 Final Capacity 12 | 6 12 12 Final Carried 12 | 6 12 12 Class Distribution -------------------- 60% | Mutant 26% | Hauler-Mutant 13% | Scavenger-Mutant Dominant Class ---------------- Mutant | -10/Materials Hauler-Mutant | -10/Mines Resources | -11 -10 -10 ----------- Run | Scr Mat Min Matter Collected 571 | 226 99 246 Remotely . | . . . Salvage Created 196 | . 108 88 Parts 26 | . 12 14 Haulers Intercepted . | . . . Recyclers Shooed . | . . . Parts Field Recycled . | . . . Retrieved Matter . | . . . Parts Self-Destructed . | . . . Prevented . | . . . Kills | -11 -10 -10 ------- Run | Scr Mat Min Combat Hostiles Destroyed 18 | . 6 12 Guns 11 | . 6 5 AOE 7 | . . 7 Classes Destroyed 3 | . 2 1 Swarmer 11 | . 5 6 Grunt 1 | . 1 . Assembled 6 | . . 6 Best Kill Streak 6 | . 3 6 Combat Bots Only 6 | . 3 6 Max Kills in Single Turn 3 | . 1 3 Gunslinging . | . . . Exploded 3 | . . 3 Melee . | . . . Uniques/NPCs Destroyed . | . . . Combat | -11 -10 -10 -------- Run | Scr Mat Min Damage Taken 902 | . 254 648 Core 258 | . 88 170 Absorbed by Shields . | . . . Core Remaining (%) 100 | 100 . . Volleys Fired 32 | . 13 19 Largest 2 | . 2 2 Hottest 130 | . 130 130 Shots Fired 53 | . 26 27 Gun 50 | . 26 24 Cannon . | . . . Launcher 3 | . . 3 Special . | . . . Kinetic 32 | . 22 10 Thermal 18 | . 4 14 Explosive 3 | . . 3 Electromagnetic . | . . . Robot Hit Streak 5 | . 5 3 Robot Miss Streak 3 | . 3 2 Penetration Max . | . . . Secondary Targets 4 | . 2 2 Max Gunslinging Chain 1 | . 1 1 Shots Hit Robots 27 | . 14 13 Core Hits 20 | . 6 14 Critical Hits . | . . . Critical Kills . | . . . Critical Parts Destroyed . | . . . Melee Attacks . | . . . Impact . | . . . Slashing . | . . . Piercing . | . . . Sneak Attacks . | . . . Combat Hostiles . | . . . Follow-up Attacks . | . . . Damage Inflicted 705 | 1 132 572 Guns 304 | . 132 172 Cannons . | . . . Explosions 400 | . . 400 Melee . | . . . Ramming 1 | 1 . . Kinetic 175 | . 116 59 Thermal 129 | . 16 113 Explosive 400 | . . 400 Electromagnetic . | . . . Impact . | . . . Slashing . | . . . Piercing . | . . . Highest Corruption . | . . . Average Corruption . | . . . Corruption Purged . | . . . Overload Shots . | . . . Overflow Damage 20 | . . 20 Projectiles . | . . . Explosions 20 | . . 20 Melee . | . . . Knockbacks . | . . . Impact . | . . . Kinetic . | . . . Secondary . | . . . Self-Inflicted Damage 11 | . . 11 Shots 1 | . . 1 Rammed 1 | 1 . . Targets Rammed 1 | 1 . . Kicked . | . . . Crushed . | . . . Highest Temperature 195 | . 90 195 Average Temperature 64 | . 51 67 Received Heat Transfer 74 | . 12 62 Siege Activations . | . . . Robots Corrupted . | . . . Combat Hostiles . | . . . Parts Fried . | . . . Impact Corruptions . | . . . Robots Melted . | . . . Combat Hostiles . | . . . Parts Melted . | . . . Heat Transferred 296 | . 37 259 Parts Sabotaged . | . . . Parts Stolen . | . . . Parts Stripped . | . . . Power Chain Reactions . | . . . Missiles Intercepted . | . . . Alert | -11 -10 -10 ------- Run | Scr Mat Min Peak Influence 150 | . 150 93 Initial 23 | . . 23 Average 55 | . 80 42 Maximum Alert Level . | . . . Low Security (%) 100 | 100 100 100 Level 1 . | . . . Level 2 . | . . . Level 3 . | . . . Level 4 . | . . . Level 5 . | . . . High Security . | . . . Max Security . | . . . Squads Dispatched 1 | . 1 . Investigation . | . . . Extermination . | . . . Reinforcement 1 | . 1 . Assault . | . . . Garrison . | . . . Intercept . | . . . Construction Impeded . | . . . Haulers Reinforced . | . . . Stealth | -11 -10 -10 --------- Run | Scr Mat Min Distress Signals . | . . . Communications Jammed . | . . . Distress Signals . | . . . Times Spotted 31 | . 12 19 Peak Tracking Total 6 | . 4 6 Tactical Retreats 4 | . 2 2 Traps | -11 -10 -10 ------- Run | Scr Mat Min Traps Triggered . | . . . Indirectly . | . . . Trap Hack Attempts . | . . . Triggered . | . . . Disarmed . | . . . Reprogrammed . | . . . Reused . | . . . Traps Extracted . | . . . Installed . | . . . Triggered . | . . . Machines | -11 -10 -10 ---------- Run | Scr Mat Min Machines Disabled 1 | . 1 . Max in Single Turn 1 | . 1 . Machines Sabotaged . | . . . Garrisons Compromised . | . . . Overloaded Fab Kills . | . . . Fab Network Shutdowns . | . . . Hacking | -11 -10 -10 --------- Run | Scr Mat Min Machines Accessed 2 | . 2 . Terminals 2 | . 2 . Fabricators . | . . . Repair Stations . | . . . Recycling Units . | . . . Scanalyzers . | . . . Garrison Access . | . . . Total Hacks 8 | . 8 . Successful 6 | . 6 . Failed 2 | . 2 . Catastrophic . | . . . Database Lockouts . | . . . Manual . | . . . Terminals 8 | . 8 . Fabricators . | . . . Repair Stations . | . . . Recycling Units . | . . . Scanalyzers . | . . . Garrison Access . | . . . Terminal Hacks 6 | . 6 . Record 3 | . 3 . Robot Analysis 1 | . 1 . Prototype ID Bank 1 | . 1 . Branch Access Points 1 | . 1 . Fabricator Hacks . | . . . Repair Station Hacks . | . . . Recycling Unit Hacks . | . . . Scanalyzer . | . . . Garrison Access Hacks . | . . . Unauthorized Hacks . | . . . Terminals . | . . . Fabricators . | . . . Repair Stations . | . . . Recycling Units . | . . . Scanalyzers . | . . . Garrison Access . | . . . Data Cores Recovered . | . . . Used . | . . . Hacking Detections 2 | . 2 . Full Trace Events 1 | . 1 . Feedback Events . | . . . Feedback Blocked . | . . . Robot Schematics Acquired . | . . . Robots Built . | . . . Matter . | . . . Time . | . . . Total Robot Build Rating . | . . . Part Schematics Acquired . | . . . Parts Built . | . . . Matter . | . . . Time . | . . . Total Part Build Rating . | . . . Parts Repaired . | . . . Time . | . . . Parts Recycled . | . . . Recycled Matter . | . . . Retrieved Matter . | . . . Retrieved Components . | . . . Parts Scanalyzed . | . . . Part Schematics Acquired . | . . . Parts Damaged . | . . . Bothacking | -11 -10 -10 ------------ Run | Scr Mat Min Used RIF Installer . | . . . Robots Hacked . | . . . Non-combat . | . . . Combat . | . . . Robot Hacks Applied . | . . . Relay Couplers Released . | . . . Robots Rewired . | . . . Allies Hacked . | . . . Hacks Repelled . | . . . Allies | -11 -10 -10 -------- Run | Scr Mat Min Total Allies 2 | . . 2 Largest Group 2 | . . 2 Highest-Rated Group 50 | . . 50 Highest-Rated Ally 31 | . . 31 Total Orders . | . . . Ally Attacks 15 | . . 15 Total Damage 330 | . . 330 Kills 1 | . . 1 Allies Corrupted . | . . . Allies Melted . | . . . Intel | -11 -10 -10 ------- Run | Scr Mat Min Robot Analysis Total 1 | . 1 . Derelict Logs Recovered 2 | . . 2 Drone Launches . | . . . Drone Recoveries . | . . . Exploration | -11 -10 -10 ------------- Run | Scr Mat Min Turns Passed 1382 | 37 524 821 Spaces Moved 1109 | 19 388 702 Core . | . . . Treads 86 | 19 67 . Legs . | . . . Wheels 813 | . 321 492 Hover 210 | . . 210 Flight . | . . . Fastest Speed 76 | 160 100 76 Average Speed 108 | 160 114 103 Slowest Speed 180 | 160 180 146 Overloaded Moves . | . . . Propulsion Burnouts . | . . . Robots Hopped . | . . . Cave-ins Triggered . | . . . Exploration Rate (%) 47 | 2 46 95 Regions Visited 2 Branch Regions 1 Pre-discovered Areas 1 | . . 1 Known Exits Taken 1 | . 1 . Unknown Exits Taken 1 | 1 . . Scrap Searched 2 | . . 2 Spaces Dug . | . . . Terrain Destroyed 33 | . . 33 Melee . | . . . Projectile . | . . . AOE 33 | . . 33 Terrain Rammed . | . . . Walls Destroyed . | . . . Machines Disabled . | . . . Actions | -11 -10 -10 --------- Run | Scr Mat Min Total 1235 | 24 443 768 Wait 20 | 2 2 16 Move 1107 | 18 387 702 Hop . | . . . Pick Up 26 | . 15 11 Fast Attach 1 | . 1 . Attach 9 | . 1 8 Detach 1 | . 1 . Swap 24 | 3 13 8 Drop 14 | . 10 4 Fire 32 | . 13 19 Melee . | . . . Ram . | . . . Kick . | . . . Crush 1 | 1 . . Escape Stasis . | . . . Rewire . | . . . Trap . | . . . Miscellaneous . | . . . Route ------- -11/Scrapyard -10/Materials -10/Mines (discovered 3 exits: *Mat x2 / [*Exi]) History --------- Turn | Location | Event 4 | -11/Scrapyard | Discovered new exit (range 3) 38 | -11/Scrapyard | Entered Materials 297 | -10/Materials | Identified exit to Mines 322 | -10/Materials | Build established: Mutant 562 | -10/Materials | Entered Mines 593 | -10/Mines | Discovered new exit (range 10) 763 | -10/Mines | Deemed a non-threat by the Exiles lab entrance 763 | -10/Mines | Discovered new exit (range 5) 819 | -10/Mines | Identified exit to Materials 823 | -10/Mines | Assembled infested the area 844 | -10/Mines | Met 8R-AWN 854 | -10/Mines | Core integrity fell below 50% 859 | -10/Mines | Core integrity fell below 20% 896 | -10/Mines | Lost 7 parts (1p2n1u3w) 1136 | -10/Mines | Build established: Hauler-Mutant 1294 | -10/Mines | Learned location of Zion (-7) 1383 | -10/Mines | Destroyed by Y-45 Defender with Heavy Assault Rifle Last Messages --------------- 00970_ U-05 Engineer lays Concrete. 00972_ U-05 Engineer builds a Wall. 00975_ U-05 Engineer lays Concrete. 00976_ U-05 Engineer builds a Wall. 00985_ U-05 Engineer lays Concrete. 00986_ U-05 Engineer builds a Wall. 00991_ U-05 Engineer lays Concrete. 01004_ K-01 Serf collects debris. 01150_ A pair of derelicts emerge from the shadows: "We're, um, lost. You wouldn't happen to know the way out of here, would you?" 01195_ Dropped Ion Engine. 01196_ Dropped Hcp. Storage Unit. 01242_ G-47 Trooper destroyed. 01256_ Acquired 44 matter. 01257_ Acquired Particle Gun. 01293_ K-01 Serf collects debris. 01294_ Acquired derelict log, extracted data. World map updated: -7/Zion. 01299_ K-01 Serf collects debris. 01374_ Assault Rifle destroyed. Map ----- +----------------------------------------------------+ | ?# ##?#####????# #????????????????# | | ?# #?## ###### ###??????????????# | | ?# ### ##?????????????####### | | ?# ####### ####???????????????# | | ?# ###??### ##??????????????# | | ?# ###???## #??????????????## | | ?# ##????## #???############# | | ?## ##????## ##??## | | ??####?????# ##???# ####### ## | | ???????????# ####????# #?????# ## | | ??????????## ##???????# ##????# ## | | ??????????# #????????# #???## | | ??????????# #????????# #???# | | ??????????# ##????????# #???# | | ??????????#### ##?????????# #???## | | ?????????????## #?????????## #????## | | ??????????????# ##????????# #?????# ## | | ??????????????# ##???????# < #?????# #? | | ??????######??## #???????## ##?????# #? | | ?????##" "##??## #????????### ##?????# #? | | ?????#!! ]!#???## #????????# ###????# #? | | ?????#[] !|#????# ###???????## = #????# #? | | ??????# #?????# #?????????# = ##???# #? | | ?????###++######## #?## ##??# = #???# #? | | ?????# Y # ### #### = #???# #? | | ?????# Y @ ###???# #? | | ?????# ###?????# #? | | ?????# # ###### ##???????# #? | | ?????# # #????## ####????????# ## | | ?????# # #?????####????????????# | | ?????# # #?????????????????????### | | ?????# # #??????????????????????## | | ?????# # #??????????????????????# | | ?????# # #?????????????????????## # | | ?????# ??????????????????????#< # | | ?????# ##??????????????????????#### | | ?????# #??????????????????????????? | | ?????# #??????????????????????????? | | ?????# #??????????????????????????? | | ?????#############??????????????????????????? | | ????????????????????????????????????????????? | | | | | | | | | | | | | | | | | | | +----------------------------------------------------+ Best States ------------- Heat Dissipation 35 Energy Generation 14 Energy Capacity 250 Matter Stores 300 Matter Capacity 300 Sight Range 16 Terrain Scan Density 10 Armor Coverage 150 Evasion (%) 49 Armor Integrity Analysis 33 Recoil Reduction 2 Item Schematics ----------------- None Robot Schematics ------------------ None Fabricated ------------ Nothing Alien Tech Used ----------------- None Achievements -------------- None Challenges ------------ None Game ------ Seed ManeuveringChromaticMapper Manual? 0 Play Time 00:25:22 Cumulative 3.8 hours Start 2020.10.06 @ 23:20:15 End 2020.10.06 @ 23:46:59 Sessions 1 Manual Loads 0 Difficulty Rogue Special Mode None Game No. 8 Rogue 8 Adventurer 0 Explorer 0 Win Type - Total 0 Types 0/0/0/0/0/0/0/0/0 Lore% 2 Gallery% 9 Achievement% 9 Wizard Run 0 Options --------- ASCII 0 Keyboard 1 Movement Numpad Keybinds 0 Fullscreen 1 Font 18/SmallcapsGlow Map View 76x50 Tactical HUD 1 Map Filters NONE Filters NONE Steam 1 RUN: 433e6e28-c299-402f-ad1f-143b4853f431